bitfinex-derivatives/quotes_ETHF0:USTF0_20250627
["timestamp","ask_amount","ask_price","bid_price","bid_amount"]
[1751056981374,0.82423,2425.4,2425.3,7.02709861]
[1751056981572,0.82423,2425.5,2425.3,14.27855861]
[1751056981771,0.82423,2425.5,2425.4,30.34149861]
[1751056981977,0.82416,2425.7,2425.5,0.82419]
[1751056982276,0.82416,2425.7,2425.6,7.02709861]
[1751056982669,0.82416,2425.7,2425.6,8.40759861]
[1751056986677,0.82416,2425.7,2425.6,33.52159861]
[1751056987284,0.82416,2425.7,2425.6,34.34576861]
[1751056987473,0.82414,2425.8,2425.6,34.34576861]
[1751056987668,0.82414,2425.7,2425.6,33.52159861]
[1751056989078,0.82414,2425.7,2425.6,32.14109861]
[1751056989579,0.82414,2425.7,2425.6,28.3218]
[1751056990176,0.82425,2425.4,2425.3,3.2078]
[1751056996587,5.81425,2425.4,2425.3,3.2078]
[1751057000191,0.82428,2425.3,2425.2,25.987]
[1751057001292,0.82428,2425.3,2425.2,0.895]
[1751057001878,0.82428,2425.3,2425.2,25.985]
[1751057002491,0.82428,2425.3,2425.2,0.895]
[1751057002789,0.82428,2425.3,2425.2,25.985]
[1751057003190,0.82432,2425.2,2425.1,43.24817618]
[1751057003491,0.82432,2425.2,2425.1,68.33817618]
[1751057003693,0.82432,2425.2,2425.1,43.24817618]
[1751057003885,0.82432,2425.2,2425.1,68.33817618]
[1751057004188,0.82432,2425.2,2425.1,43.24817618]
[1751057004491,0.82432,2425.2,2425.1,68.33817618]
[1751057005395,0.8243,2425.3,2425.1,69.16252618]
[1751057005890,0.82432,2425.2,2425.1,43.24817618]
[1751057006083,0.82432,2425.2,2425.1,68.33817618]
[1751057006694,0.82431,2425.3,2425.1,66.71435]
[1751057006898,0.82431,2425.3,2425.2,6.27327178]
[1751057008188,0.82431,2425.3,2425.2,2.45397317]
[1751057008391,0.82432,2425.2,2425.1,68.34397317]
[1751057009294,0.82432,2425.2,2425.1,2.45397317]
[1751057009483,0.82435,2425.1,2425.0,5.66177317]
[1751057009688,7.29535,2425.1,2425.0,5.66177317]
[1751057010887,6.471,2425.1,2425.0,9.48107178]
[1751057011081,7.29535,2425.1,2425.0,32.11709861]
[1751057011490,7.29535,2425.1,2425.0,28.2978]
[1751057013794,6.471,2425.1,2425.0,28.2978]
[1751057014192,7.29535,2425.1,2425.0,28.2978]
[1751057014390,7.29535,2425.1,2425.0,29.93206203]
[1751057016194,7.29535,2425.1,2425.0,30.74947528]
[1751057016489,7.29535,2425.1,2425.0,29.9322977]
[1751057017794,0.82435,2425.1,2425.0,29.9322977]
[1751057019295,0.82435,2425.1,2425.0,3.2078]
[1751057019594,0.82435,2425.1,2425.0,29.9347402]
[1751057020697,0.82434,2425.2,2425.0,29.9347402]
[1751057021297,0.82434,2425.2,2425.1,0.8637]
[1751057025197,7.28434,2425.2,2425.1,2.4986402]
[1751057027504,0.82434,2425.2,2425.1,2.4986402]
[1751057030205,6.461,2425.4,2425.1,4.13970528]
[1751057030408,7.28525,2425.4,2425.3,3.2078]
[1751057031311,8.74235,2425.4,2425.3,3.2078]
[1751057031713,0.82428,2425.3,2425.2,26.72735986]
[1751057032111,0.82428,2425.3,2425.2,25.092]
[1751057032305,0.82428,2425.3,2425.2,26.72735986]
[1751057035609,0.82432,2425.2,2425.1,1.63535986]
[1751057035815,3.06942,2425.2,2425.1,1.63535986]
[1751057037913,0.82435,2425.1,2425.0,4.84315986]
[1751057038112,8.67715,2425.1,2425.0,4.84315986]
[1751057041315,0.82435,2425.1,2425.0,4.84315986]
[1751057041516,0.82435,2425.1,2425.0,6.53887528]
[1751057042416,0.82435,2425.1,2425.0,5.72455762]
[1751057042619,0.82435,2425.1,2425.0,4.0872]
[1751057048426,12.27433,2425.2,2425.0,8.81243528]
[1751057048725,12.27433,2425.2,2425.0,7.98807528]
[1751057048726,0.82435,2425.1,2425.0,7.98807528]
[1751057051020,0.82435,2425.1,2424.9,2.45167528]
[1751057051021,0.82438,2425.0,2424.9,2.45167528]
[1751057051231,3.95008,2425.0,2424.9,1.63652913]
[1751057051526,0.82445,2424.8,2424.7,1.63652913]
[1751057051727,7.28345,2424.8,2424.7,1.63652913]
[1751057052321,0.82449,2424.7,2424.6,1.63652913]
[1751057058233,0.82452,2424.6,2424.5,43.33132913]
[1751057059326,0.82452,2424.6,2424.5,2.53132913]
[1751057070240,0.82452,2424.6,2424.5,3.93022913]
[1751057072441,0.82452,2424.6,2424.5,2.53132913]
[1751057074249,0.82452,2424.6,2424.5,0.8948]
[1751057074642,4.99,2425.0,2424.5,4.71409861]
[1751057074844,11.45,2425.0,2424.6,29.9292142]
[1751057075149,0.82449,2424.7,2424.6,31.3006142]
[1751057075450,0.82447,2424.8,2424.6,71.29272]
[1751057075750,0.82447,2424.8,2424.7,1.63185354]
[1751057076042,4.99,2425.0,2424.7,5.45115215]
[1751057076245,6.46,2425.1,2424.9,3.81929861]
[1751057076551,6.46,2425.1,2425.0,28.43248394]
[1751057076753,6.46,2425.1,2425.0,28.17248]
[1751057077343,0.82435,2425.1,2425.0,27.3481]
[1751057077551,0.82435,2425.1,2425.0,27.60776587]
[1751057079346,0.82434,2425.2,2425.0,27.60776587]
[1751057079949,0.82435,2425.1,2425.0,27.60776587]
[1751057080752,0.82434,2425.2,2425.0,27.60776587]
[1751057082458,0.82435,2425.1,2425.0,27.60776587]
[1751057083151,0.82434,2425.2,2425.0,27.60776587]
[1751057083457,0.82435,2425.1,2425.0,27.60776587]
[1751057084056,0.82435,2425.1,2425.0,2.51876587]
[1751057084356,0.82435,2425.1,2425.0,27.60476587]
[1751057086056,0.82435,2425.1,2425.0,25.9737]
[1751057086553,0.82435,2425.1,2425.0,27.60476587]
[1751057088355,0.82435,2425.1,2425.0,28.98296587]
[1751057088556,0.82435,2425.1,2425.0,29.80734587]
[1751057089160,0.82435,2425.1,2425.0,28.98296587]
[1751057089357,0.82435,2425.1,2425.0,27.60476587]
[1751057089755,0.82435,2425.1,2425.0,28.42914587]
[1751057089955,0.82435,2425.1,2425.0,27.60476587]
[1751057090759,0.82435,2425.1,2425.0,68.40476587]
[1751057092663,0.82435,2425.1,2425.0,69.22914587]
[1751057092855,7.3576,2425.3,2425.0,69.22914587]
[1751057092856,0.82434,2425.2,2425.0,69.22914587]
[1751057093955,0.82434,2425.2,2425.0,70.60044587]
[1751057094958,0.82435,2425.1,2425.0,70.60044587]
[1751057096060,0.82435,2425.1,2425.0,69.22914587]
[1751057097359,0.82434,2425.2,2425.0,69.22914587]
[1751057097564,0.82435,2425.1,2425.0,69.22914587]
[1751057097862,0.82434,2425.2,2425.0,69.22914587]
[1751057100068,1.6842,2425.3,2425.1,0.82435]
[1751057100263,1.6842,2425.3,2425.2,25.081]
[1751057100468,7.9124,2425.4,2425.2,25.081]
[1751057100469,6.455,2425.4,2425.2,25.081]
[1751057100767,0.8959,2425.5,2425.3,41.62428]
[1751057100768,0.82423,2425.5,2425.3,41.62428]
[1751057101064,12.2692,2425.6,2425.4,25.08]
[1751057101264,12.2692,2425.6,2425.4,25.90424]
[1751057102266,0.82421,2425.5,2425.4,25.08]
[1751057104666,0.82425,2425.4,2425.3,40.8]
[1751057104871,0.82428,2425.3,2425.2,29.91686587]
[1751057105167,4.64357861,2425.3,2425.2,26.70906587]
[1751057105365,5.97877861,2425.3,2425.2,67.50906587]
[1751057106270,5.97877861,2425.3,2425.2,65.878]
[1751057107070,5.97877861,2425.3,2425.2,67.50884243]
[1751057107469,5.97877861,2425.3,2425.2,42.43084243]
[1751057107668,0.82432,2425.2,2425.1,1.63084243]
[1751057107868,2.15932,2425.2,2425.1,1.63084243]
[1751057108065,7.15932,2425.2,2425.1,1.63084243]
[1751057109970,12.14932,2425.2,2425.1,1.63084243]
[1751057113374,7.14932,2425.2,2425.1,1.63084243]
[1751057116979,13.60132,2425.2,2425.1,1.63084243]
[1751057117479,7.14932,2425.2,2425.1,1.63084243]
[1751057117679,13.60132,2425.2,2425.1,1.63084243]
[1751057118881,12.26632,2425.2,2425.1,1.63084243]
[1751057119072,12.26632,2425.2,2425.1,2.45167528]
[1751057119274,12.26632,2425.2,2425.1,3.30177528]
[1751057119580,11.442,2425.2,2425.1,3.30177528]
[1751057119966,4.99,2425.2,2425.1,4.12612528]
[1751057120176,7.2938,2425.4,2425.2,0.82432]
[1751057120378,9.1519,2425.5,2425.2,2.44833883]
[1751057120579,9.97613,2425.5,2425.4,1.63205208]
[1751057121483,0.82425,2425.4,2425.3,1.63205208]
[1751057122880,9.97613,2425.5,2425.3,1.63205208]
[1751057123080,9.97613,2425.5,2425.4,1.63205208]
[1751057124284,9.1519,2425.5,2425.4,0.82425]
[1751057124790,4.03197,2425.7,2425.5,0.82421]
[1751057125082,6.452,2425.7,2425.6,1.66358]
[1751057125881,6.452,2425.7,2425.6,3.09598]
[1751057126083,7.27615,2425.7,2425.6,3.09598]
[1751057126988,1.8219,2425.9,2425.7,0.82415]
[1751057126989,0.82413,2425.8,2425.7,0.82415]
[1751057127188,7.27513,2425.8,2425.7,2.25655]
[1751057127388,7.27513,2425.8,2425.7,1.4324]
[1751057127582,6.451,2425.8,2425.7,2.25655]
[1751057127782,57.96586,2426.0,2425.8,0.82409]
[1751057127992,57.96586,2426.0,2425.8,2.25649]
[1751057128990,0.82408,2425.9,2425.8,2.25649]
[1751057129180,0.82408,2425.9,2425.8,42.2324]
[1751057129385,7.27506,2426.0,2425.8,45.4402]
[1751057129585,7.27506,2426.0,2425.9,1.395]
[1751057129881,0.82406,2426.0,2425.9,2.21908]
[1751057131192,7.27506,2426.0,2425.9,2.21908]
[1751057131390,7.27506,2426.0,2425.9,1.395]
[1751057131688,7.27506,2426.0,2425.9,2.21908]
[1751057132096,0.82406,2426.0,2425.9,1.395]
[1751057132294,7.27506,2426.0,2425.9,1.395]
[1751057133878,0.82406,2426.0,2425.9,1.395]
[1751057134091,7.27506,2426.0,2425.9,1.395]
[1751057134794,5.81403,2426.1,2425.9,2.21908]
[1751057135185,0.82398,2426.2,2426.0,7.80193861]
[1751057135694,0.82398,2426.2,2426.0,3.98264]
[1751057137393,0.82401,2426.1,2426.0,3.1586]
[1751057137892,13.47809861,2426.4,2426.0,3.1586]
[1751057137893,0.824,2426.2,2426.0,3.1586]
[1751057138294,0.824,2426.2,2426.0,3.98264]
[1751057138990,0.82397,2426.3,2426.0,3.98264]
[1751057139685,0.82397,2426.3,2426.1,3.2078]
[1751057139895,0.82396,2426.3,2426.1,4.0318]
[1751057140192,0.82398,2426.2,2426.1,4.671]
[1751057140588,0.82398,2426.2,2426.1,3.2078]
[1751057155707,0.82404,2426.0,2425.9,1.63205208]
[1751057156106,4.64333861,2426.0,2425.9,1.63205208]
[1751057156309,6.02763861,2426.0,2425.9,1.63205208]
[1751057157198,2.20834,2426.0,2425.9,1.63205208]
[1751057158105,6.02763861,2426.0,2425.9,1.63205208]
[1751057159312,0.82408,2425.9,2425.8,4.83985208]
[1751057159507,2.18718,2425.9,2425.8,1.63205208]
[1751057162222,0.82411,2425.8,2425.7,1.63205208]
[1751057162424,7.26911,2425.8,2425.7,1.63205208]
[1751057162629,0.82415,2425.7,2425.6,1.63205208]
[1751057162820,0.82421,2425.5,2425.4,1.63205208]
[1751057163015,10.47801,2425.5,2425.4,1.63205208]
[1751057163333,0.82428,2425.3,2425.2,1.62847337]
[1751057163527,4.64357861,2425.3,2425.2,1.62847337]
[1751057164019,6.11267861,2425.3,2425.2,1.62847337]
[1751057164632,8.73938,2425.3,2425.2,1.62847337]
[1751057165627,7.9151,2425.3,2425.0,2.44833883]
[1751057166032,0.82438,2425.1,2424.9,3.33913883]
[1751057166227,0.82438,2425.1,2424.9,0.8908]
[1751057166623,7.27038,2425.1,2424.9,0.8908]
[1751057167329,0.82438,2425.0,2424.9,0.8908]
[1751057167728,7.27037,2425.1,2424.9,0.8908]
[1751057168734,0.82438,2425.0,2424.9,0.8908]
[1751057174339,7.27138,2425.0,2424.9,0.8908]
[1751057175629,0.82438,2425.0,2424.9,0.8908]
[1751057175835,7.26638,2425.0,2424.9,0.8908]
[1751057176030,0.82438,2425.0,2424.9,0.8908]
[1751057176239,7.26638,2425.0,2424.9,0.8908]
[1751057177228,0.82438,2425.0,2424.9,0.8908]
[1751057177434,7.26638,2425.0,2424.9,0.8908]
[1751057179542,0.82438,2425.0,2424.9,1.71522]
[1751057179839,0.82438,2425.0,2424.9,4.02642]
[1751057180632,6.442,2425.2,2424.9,4.02642]
[1751057180837,0.82437,2425.1,2425.0,0.82438]
[1751057181040,0.82437,2425.1,2424.9,4.02639]
[1751057181440,0.82438,2425.0,2424.9,4.02639]
[1751057182641,0.82437,2425.1,2424.9,4.02639]
[1751057182946,0.82437,2425.1,2425.0,4.64367861]
[1751057184336,0.844,2425.4,2425.1,0.82435]
[1751057184544,6.443,2425.3,2425.0,6.01875861]
[1751057184733,6.443,2425.3,2425.1,0.82435]
[1751057185040,7.26731,2425.3,2425.1,2.19945]
[1751057185236,7.26731,2425.3,2425.2,0.8252]
[1751057186036,0.82431,2425.3,2425.2,1.64952]
[1751057186245,7.26727,2425.4,2425.3,0.82428]
[1751057186437,0.82428,2425.3,2425.2,1.64949]
[1751057188045,0.82426,2425.4,2425.3,0.82427]
[1751057188346,4.86374,2425.5,2425.3,0.82427]
[1751057188544,7.26625,2425.4,2425.3,0.82427]
[1751057188948,0.82425,2425.4,2425.3,0.82427]
[1751057189441,0.82425,2425.4,2425.2,5.46878861]
[1751057189642,0.82425,2425.4,2425.3,0.82428]
[1751057189945,10.4815,2425.5,2425.3,0.82428]
[1751057190135,0.82425,2425.4,2425.3,0.82428]
[1751057190341,0.82425,2425.4,2425.3,3.13348]
[1751057191555,0.82424,2425.5,2425.4,0.82425]
[1751057191853,6.442,2425.6,2425.4,0.82425]
[1751057192038,0.82421,2425.5,2425.4,0.82425]
[1751057192241,7.2662,2425.6,2425.5,0.82421]
[1751057192441,0.82416,2425.7,2425.6,0.82418]
[1751057192856,53.29813,2425.8,2425.6,0.82418]
[1751057193147,48.30813,2425.8,2425.6,4.03196]
[1751057193348,54.75011,2425.8,2425.7,0.82415]
[1751057193555,54.75011,2425.8,2425.6,8.66046859]
[1751057193851,0.82411,2425.8,2425.7,40.8]
[1751057194350,7.26611,2425.8,2425.7,40.8]
[1751057194745,0.82411,2425.8,2425.7,40.8]
[1751057196340,0.855,2426.0,2425.7,40.8]
[1751057196545,0.855,2426.0,2425.7,45.49909998]
[1751057196546,8.12105,2426.0,2425.7,45.49909998]
[1751057196845,8.12105,2426.0,2425.8,0.8241]
[1751057197849,0.855,2426.0,2425.9,0.82408]
[1751057198049,11.432,2426.1,2425.8,3.81929861]
[1751057198258,6.442,2426.1,2426.0,0.82404]
[1751057198455,7.26601,2426.2,2426.0,0.82404]
[1751057198756,0.82401,2426.1,2425.9,0.82405]
[1751057200145,0.82401,2426.1,2425.8,6.81276859]
[1751057200345,7.265,2426.2,2425.8,6.81276859]
[1751057200550,7.265,2426.2,2426.0,0.82402]
[1751057201057,0.82401,2426.1,2426.0,0.82402]
[1751057202054,1.4107,2426.3,2426.0,0.82402]
[1751057202055,0.824,2426.2,2426.0,0.82402]
[1751057202250,0.824,2426.2,2426.1,0.82401]
[1751057202450,0.824,2426.2,2426.0,0.82402]
[1751057202750,6.441,2426.3,2425.7,44.13898998]
[1751057202951,3.81929861,2426.1,2425.7,44.13899998]
[1751057203148,0.82411,2425.8,2425.7,42.43336998]
[1751057203751,0.82411,2425.8,2425.7,40.8]
[1751057204152,0.82411,2425.8,2425.7,41.62415]
[1751057208060,0.82411,2425.8,2425.7,42.45295]
[1751057208562,0.82411,2425.8,2425.7,41.6288]
[1751057209060,0.82411,2425.8,2425.7,42.45295]
[1751057209265,0.82411,2425.8,2425.7,41.6288]
[1751057209849,0.82411,2425.8,2425.7,40.8]
[1751057210049,0.82415,2425.7,2425.6,4.84116998]
[1751057210255,0.82418,2425.6,2425.5,25.047]
[1751057210556,0.82421,2425.5,2425.4,43.24833883]
[1751057210758,1.65721,2425.5,2425.4,43.24833883]
[1751057211457,1.65721,2425.5,2425.4,68.29433883]
[1751057213161,1.65721,2425.5,2425.4,67.47499496]
[1751057213362,1.65721,2425.5,2425.4,65.846]
[1751057215370,1.65721,2425.5,2425.4,68.29433883]
[1751057216752,1.65721,2425.5,2425.4,43.24833883]
[1751057217052,1.65721,2425.5,2425.4,68.29433883]
[1751057220366,1.65721,2425.5,2425.4,65.846]
[1751057221067,0.833,2425.5,2425.4,65.846]
[1751057221464,0.833,2425.5,2425.4,66.67025]
[1751057221869,0.82416,2425.7,2425.5,0.8242]
[1751057222176,0.82418,2425.6,2425.5,2.44808514]
[1751057222470,0.82418,2425.6,2425.5,27.49308514]
[1751057222674,2.2757,2425.8,2425.5,27.49308514]
[1751057222861,0.82418,2425.7,2425.6,1.63231718]
[1751057223062,0.82418,2425.7,2425.6,2.49811718]
[1751057226878,0.82415,2425.7,2425.6,2.49811718]
[1751057227168,0.82412,2425.8,2425.6,3.32228718]
[1751057227369,0.82412,2425.8,2425.7,25.044]
[1751057228573,7.2611,2425.9,2425.7,29.68744861]
[1751057228772,7.2611,2425.9,2425.7,31.07994861]
[1751057228977,7.2611,2425.9,2425.7,32.71226579]
[1751057229165,0.82411,2425.8,2425.7,27.26065]
[1751057229365,0.82411,2425.8,2425.7,28.89296718]
[1751057229973,4.5432,2426.2,2425.7,31.88811579]
[1751057230171,6.437,2426.1,2425.7,31.88811579]
[1751057230373,6.437,2426.1,2425.8,2.45640718]
[1751057230374,0.82407,2426.0,2425.8,2.45640718]
[1751057230570,0.82407,2426.0,2425.9,25.043]
[1751057230775,6.437,2426.1,2426.0,0.82404]
[1751057231075,0.82395,2426.3,2426.1,0.824]
[1751057231276,6.437,2426.4,2426.2,25.043]
[1751057231470,7.26093,2426.4,2426.2,25.86697]
[1751057231670,7.26093,2426.4,2426.3,0.8215]
[1751057233867,6.437,2426.4,2426.3,0.8215]
[1751057235479,7.26091,2426.4,2426.3,0.8215]
[1751057235678,11.08020861,2426.4,2426.3,0.8215]
[1751057238776,10.25629861,2426.4,2426.3,1.64544]
[1751057238975,6.437,2426.4,2426.3,1.64544]
[1751057239171,7.26091,2426.4,2426.3,0.8215]
[1751057239974,11.08020861,2426.4,2426.3,0.8215]
[1751057241371,11.08020861,2426.4,2426.2,28.2508]
[1751057241372,0.82394,2426.3,2426.2,28.2508]
[1751057241679,3.06954,2426.3,2426.2,28.2508]
[1751057242172,9.50154,2426.3,2426.2,25.043]
[1751057244074,6.432,2426.3,2426.2,25.043]
[1751057244279,7.25594,2426.3,2426.2,25.043]
[1751057245184,3.81929861,2426.4,2426.2,25.043]
[1751057245185,11.07522861,2426.4,2426.2,25.043]
[1751057245382,11.07522861,2426.4,2426.3,0.866]
[1751057248681,11.07520861,2426.4,2426.3,1.68994]
[1751057248883,0.82391,2426.4,2426.3,1.68994]
[1751057249282,0.8239,2426.5,2426.3,0.866]
[1751057249585,0.82391,2426.4,2426.3,1.68992]
[1751057250987,0.82391,2426.4,2426.3,0.866]
[1751057251382,0.82394,2426.3,2426.2,28.2408]
[1751057251786,0.82394,2426.3,2426.2,3.2078]
[1751057252084,0.82394,2426.3,2426.2,28.2408]
[1751057252986,0.82392,2426.4,2426.2,30.47477]
[1751057253587,0.8239,2426.5,2426.2,30.47477]
[1751057253785,0.82391,2426.4,2426.2,30.47477]
[1751057255485,0.82391,2426.4,2426.2,32.10708718]
[1751057255688,0.82394,2426.3,2426.2,29.87311718]
[1751057257388,0.82398,2426.2,2426.1,1.63231718]
[1751057257577,0.82404,2426.0,2425.9,4.84011718]
[1751057258280,0.82404,2426.0,2425.9,3.2078]
[1751057259486,0.82404,2426.0,2425.9,5.65588514]
[1751057259686,0.82404,2426.0,2425.9,2.44808514]
[1751057260986,0.82404,2426.0,2425.9,3.29578514]
[1751057261582,7.25503,2426.1,2425.9,4.11985514]
[1751057261778,7.25503,2426.1,2426.0,2.45001564]
[1751057262885,0.82403,2426.1,2426.0,2.45001564]
[1751057263182,11.422,2426.4,2426.2,0.82396]
[1751057263393,0.82394,2426.3,2426.2,2.45722182]
[1751057264387,0.82394,2426.3,2426.2,3.27397564]
[1751057265585,11.422,2426.4,2426.3,0.82394]
[1751057265783,12.24593,2426.4,2426.2,3.27396564]
[1751057265983,5.81393,2426.4,2426.2,3.27396564]
[1751057266184,12.24493,2426.4,2426.2,3.27396564]
[1751057266491,0.82394,2426.3,2426.2,3.27396564]
[1751057266686,0.82394,2426.3,2426.2,2.45001564]
[1751057268086,0.82394,2426.3,2426.2,3.27399564]
[1751057268284,0.82394,2426.3,2426.2,3.27397564]
[1751057268683,5.81392,2426.4,2426.3,0.82394]
[1751057269586,4.99,2426.4,2426.3,0.82394]
[1751057269986,0.82391,2426.4,2426.3,0.82394]
[1751057270289,7.24989,2426.5,2426.4,0.82391]
[1751057270491,7.24989,2426.5,2426.4,2.45512229]
[1751057270690,7.24989,2426.5,2426.4,1.63121229]
[1751057270894,7.24989,2426.5,2426.4,2.45512229]
[1751057271094,7.24989,2426.5,2426.4,1.63121229]
[1751057271487,7.24989,2426.5,2426.4,2.45512229]
[1751057271787,0.82389,2426.5,2426.4,2.45512229]
[1751057271986,4.99,2426.8,2426.4,30.4755109]
[1751057272186,4.99,2426.8,2426.7,7.85090861]
[1751057272385,7.54801098,2427.0,2426.8,0.82375]
[1751057272690,7.54799098,2427.0,2426.8,0.82375]
[1751057272891,7.54799098,2427.0,2426.9,0.82374]
[1751057273097,7.54799098,2427.0,2426.8,2.17025]
[1751057273286,1.12201098,2427.0,2426.8,25.84874]
[1751057273683,1.12201098,2427.0,2426.9,0.82374]
[1751057273891,0.29829098,2427.0,2426.9,0.82374]
[1751057274294,1.12199098,2427.0,2426.8,29.66804861]
[1751057274489,1.12199098,2427.0,2426.8,31.01454861]
[1751057274683,0.82374,2426.9,2426.8,30.19079861]
[1751057274890,0.82374,2426.9,2426.8,25.025]
[1751057275795,0.82374,2426.9,2426.8,26.65621229]
[1751057276397,0.82374,2426.9,2426.8,25.025]
[1751057276598,0.82374,2426.9,2426.8,26.65263099]
[1751057277695,1.12201098,2427.0,2426.8,27.47639099]
[1751057277892,0.82374,2426.9,2426.8,27.48943099]
[1751057278295,0.82374,2426.9,2426.8,28.31320099]
[1751057278596,0.82374,2426.9,2426.8,27.48943099]
[1751057278791,0.82374,2426.9,2426.8,28.31320099]
[1751057278992,1.12202098,2427.0,2426.8,28.31320099]
[1751057279898,0.29829098,2427.0,2426.9,0.82374]
[1751057280297,1.12199098,2427.0,2426.9,0.82374]
[1751057280497,0.82374,2426.9,2426.8,32.1324796]
[1751057280698,0.82374,2426.9,2426.8,28.31318099]
[1751057281098,1.12201098,2427.0,2426.8,28.31318099]
[1751057281400,0.29829098,2427.0,2426.9,0.82374]
[1751057281600,1.12199098,2427.0,2426.8,28.31318099]
[1751057282301,0.82374,2426.9,2426.8,28.31318099]
[1751057282703,0.82374,2426.9,2426.8,27.48943099]
[1751057282898,0.29829098,2427.0,2426.8,25.8618]
[1751057283092,3.2078,2427.7,2426.9,3.68698099]
[1751057283292,3.50023317,2428.4,2427.4,3.81929861]
[1751057283293,5.87779861,2427.9,2427.4,3.81929861]
[1751057283497,3.81929861,2427.5,2427.2,4.83543099]
[1751057283698,3.1051,2427.4,2427.3,25.016]
[1751057284203,3.1051,2427.4,2427.3,65.816]
[1751057284400,2.51586,2427.4,2427.3,65.816]
[1751057286493,2.51586,2427.4,2427.3,40.8]
[1751057286693,2.51586,2427.4,2427.3,65.814]
[1751057286898,2.51586,2427.4,2427.3,40.8]
[1751057287201,3.0155,2427.4,2427.2,28.2218]
[1751057287403,3.0155,2427.4,2427.2,29.04542]
[1751057287404,7.3008,2427.4,2427.2,29.04542]
[1751057287799,8.12438,2427.4,2427.2,69.0218]
[1751057288003,0.8236,2427.3,2427.2,3.2078]
[1751057288204,0.8236,2427.3,2427.2,28.2218]
[1751057289392,4.64289861,2427.3,2427.2,28.2218]
[1751057289605,6.77179861,2427.3,2427.2,28.2218]
[1751057289806,6.77179861,2427.3,2427.2,3.2078]
[1751057290005,6.77179861,2427.3,2427.2,28.2208]
[1751057291004,6.77179861,2427.3,2427.2,25.013]
[1751057294406,0.8057,2427.3,2427.2,25.013]
[1751057294611,0.8768,2427.4,2427.2,25.8545]
[1751057295113,1.70039,2427.4,2427.2,26.67812]
[1751057295309,0.82355,2427.5,2427.2,33.70521861]
[1751057295499,0.82355,2427.5,2427.2,35.15201861]
[1751057295704,0.82355,2427.5,2427.3,0.82359]
[1751057295910,5.81352,2427.6,2427.3,0.82359]
[1751057296109,5.81352,2427.6,2427.4,25.012]
[1751057296309,0.82353,2427.5,2427.4,25.012]
[1751057297808,4.64282861,2427.5,2427.4,25.012]
[1751057298813,0.8236,2427.3,2427.2,4.0493]
[1751057299014,0.8236,2427.3,2427.2,29.0603]
[1751057299214,0.82359,2427.4,2427.2,29.0603]
[1751057299620,5.26618,2428.1,2427.3,3.81929861]
[1751057299819,0.82353,2427.5,2427.4,25.011]
[1751057300218,0.82352,2427.6,2427.4,25.011]
[1751057300417,0.82353,2427.5,2427.4,25.011]
[1751057301532,1.66803,2427.6,2427.4,25.011]
[1751057302323,0.8445,2427.6,2427.4,25.011]
[1751057302534,1.66802,2427.6,2427.4,25.011]
[1751057302828,0.82353,2427.5,2427.4,25.011]
[1751057303035,0.82356,2427.4,2427.2,30.68693099]
[1751057303233,3.07866,2427.4,2427.2,30.68693099]
[1751057303429,6.65802,2427.6,2427.2,30.68693099]
[1751057303635,13.07801,2427.6,2427.3,0.82358]
[1751057303829,2.20984,2427.5,2427.2,4.83543099]
[1751057304033,0.82357,2427.4,2427.2,5.67403099]
[1751057304235,0.82357,2427.4,2427.2,46.47403099]
[1751057304434,1.3863,2427.5,2427.2,46.47403099]
[1751057304435,0.8236,2427.3,2427.2,46.47403099]
[1751057305125,0.8236,2427.3,2427.2,42.42763099]
[1751057306640,2.4853,2427.3,2427.2,42.42763099]
[1751057306838,6.30459861,2427.3,2427.2,1.62763099]
[1751057307833,12.72459861,2427.3,2427.2,1.62763099]
[1751057308039,0.82363,2427.2,2427.1,2.45001564]
[1751057308339,0.82367,2427.1,2427.0,2.45001564]
[1751057308539,4.64296861,2427.1,2427.0,2.45001564]
[1751057309342,0.8237,2427.0,2426.9,3.2078]
[1751057309541,0.8237,2427.0,2426.9,5.65275526]
[1751057311536,0.8237,2427.0,2426.9,3.2078]
[1751057313344,4.64299861,2427.0,2426.9,3.2078]
[1751057314549,11.06399861,2427.0,2426.9,3.2078]
[1751057316049,7.2447,2427.0,2426.9,3.2078]
[1751057316245,11.06399861,2427.0,2426.9,3.2078]
[1751057316954,0.82377,2426.8,2426.7,0.8671]
[1751057323052,4.64306861,2426.8,2426.7,0.8671]
[1751057324052,4.64306861,2426.8,2426.6,3.2078]
[1751057324053,0.82381,2426.7,2426.6,3.2078]
[1751057324453,0.82385,2426.6,2426.5,0.8273]
[1751057326349,8.08534,2426.7,2426.5,0.8273]
[1751057326545,0.82385,2426.6,2426.5,0.8273]
[1751057333859,2.05971,2426.5,2425.9,3.26443474]
[1751057334057,0.82405,2426.0,2425.9,3.26443474]
[1751057334452,0.82409,2425.9,2425.8,0.8493]
[1751057336648,0.82412,2425.8,2425.7,47.27223474]
[1751057336855,11.06541861,2425.8,2425.7,3.2078]
[1751057338366,11.06541861,2425.8,2425.7,4.83713412]
[1751057338664,6.422,2425.8,2425.7,4.83713412]
[1751057338969,4.99,2425.9,2425.7,7.85124861]
[1751057339150,0.82407,2426.0,2425.8,1.378]
[1751057339461,7.2785,2426.1,2425.8,1.378]
[1751057339462,0.82409,2425.9,2425.8,1.378]
[1751057340956,0.82406,2426.0,2425.8,1.378]
[1751057341459,7.2785,2426.1,2425.9,3.81929861]
[1751057341460,6.422,2426.1,2425.9,3.81929861]
[1751057341766,6.422,2426.1,2425.9,4.64335861]
[1751057341958,6.422,2426.1,2426.0,3.0859]
[1751057342661,7.24602,2426.1,2426.0,6.2937]
[1751057343060,0.824,2426.2,2426.0,7.11775]
[1751057343362,7.246,2426.2,2426.1,1.4186]
[1751057343763,0.824,2426.2,2426.1,1.4186]